[Event "24th Bosnjaci Open 2019"]
[Site "Bosnjaci"]
[Date "2019.01.06"]
[Round "6.21"]
[White "Duda, Daniel"]
[Black "Pleh, Semir"]
[Result "1/2-1/2"]
[ECO "D60"]
[WhiteElo "1991"]
[BlackElo "1767"]
[Annotator "NA"]
[PlyCount "146"]
[EventDate "2019.01.03"]
[EventType "swiss"]
[EventCountry "CRO"]
[SourceTitle "playchess.com"]
[Source "ChessBase"]
[SourceQuality "1"]
[TimeControl "5400+30"]

1. d4 {[%emt 0:00:30]} Nf6 {[%emt 0:00:30]} 2. c4 {[%emt 0:00:00]} e6 {[%emt 0:00:00]} 3. Nc3 {[%emt 0:00:00]} d5 {[%emt 0:00:00]} 4. Bg5 {[%emt 0:00:00]} Be7 {[%emt 0:00:30]} 5. Nf3 {[%emt 0:00:00]} O-O {[%emt 0:00:30]} 6. e3 {[%emt 0:00:00]} c6 {[%emt 0:00:30]} 7. Qc2 {[%emt 0:01:00]} Nbd7 {[%emt 0:00:30]} 8. Bd3 {[%emt 0:03:30]} dxc4 {[%emt 0:05:30]} 9. Bxc4 {[%emt 0:00:00]} Nd5 {[%emt 0:00:30]} 10. Bxe7 {[%emt 0:05:00]} Qxe7 {[%emt 0:04:30]} 11. O-O {[%emt 0:01:30]} Nxc3 {[%emt 0:05:30]} 12. Qxc3 {[%emt 0:10:30]} b5 {[%emt 0:00:30]} 13. Bd3 {[%emt 0:02:30]} Bb7 {[%emt 0:00:30]} 14. b4 {[%emt 0:03:30]} a6 {[%emt 0:02:30]} 15. a3 {[%emt 0:02:30]} Rac8 {[%emt 0:00:30]} 16. Rac1 {[%emt 0:05:30]} Rfe8 {[%emt 0:01:30]} 17. Rc2 {[%emt 0:04:30]} g6 {[%emt 0:02:30]} 18. Rfc1 {[%emt 0:01:30]} e5 {[%emt 0:01:30]} 19. Nxe5 {[%emt 0:01:30]} Nxe5 {[%emt 0:00:30]} 20. dxe5 {[%emt 0:00:00]} Qxe5 {[%emt 0:00:00]} 21. Qxe5 {[%emt 0:00:00]} Rxe5 {[%emt 0:00:00]} 22. Be2 {[%emt 0:00:30]} Rd5 {[%emt 0:01:30]} 23. Bf3 {[%emt 0:00:30]} Rd6 {[%emt 0:00:00]} 24. g3 {[%emt 0:01:30]} Kf8 {[%emt 0:00:00]} 25. Rc5 {[%emt 0:04:30]} f6 {[%emt 0:04:30]} 26. R1c3 {[%emt 0:00:30]} Ke7 {[%emt 0:00:30]} 27. g4 {[%emt 0:01:30]} Kd8 {[%emt 0:01:30]} 28. h4 {[%emt 0:05:30]} Kc7 {[%emt 0:00:30]} 29. g5 {[%emt 0:02:30]} Kb6 {[%emt 0:00:30]} 30. e4 {[%emt 0:03:30]} fxg5 {[%emt 0:03:30]} 31. hxg5 {[%emt 0:00:00]} Re8 {[%emt 0:00:30]} 32. Bg2 {[%emt 0:01:00]} Rf8 {[%emt 0:02:30]} 33. e5 {[%emt 0:04:30]} Rd1+ {[%emt 0:00:30]} 34. Kh2 {[%emt 0:15:30]} Rxf2 {[%emt 0:00:00]} 35. Kh3 {[%emt 0:01:30]} Rf7 {[%emt 0:03:00]} 36. Bxc6 {[%emt 0:01:30]} Re1 {[%emt 0:00:30]} 37. Bxb7 {[%emt 0:08:24]} Kxb7 {[%emt 0:00:30]} 38. Rd3 {[%emt 0:00:05]} Re7 {[%emt 0:00:30]} 39. Kg4 {[%emt 0:00:13]} Re4+ {[%emt 0:01:30]} 40. Kf3 {[%emt 0:01:30]} R4xe5 {[%emt 0:00:30]} 41. Rxe5 {[%emt 0:00:24]} Rxe5 {[%emt 0:00:30]} 42. Kf4 {[%emt 0:00:01]} Rf5+ {[%emt 0:01:30]} 43. Kg4 {[%emt 0:00:00]} Rf7 {[%emt 0:00:00]} 44. Rd6 {[%emt 0:00:55]} Rc7 {[%emt 0:10:00]} 45. Kf4 {[%emt 0:00:55]} Rc4+ {[%emt 0:00:30]} 46. Ke5 {[%emt 0:00:30]} Rg4 {[%emt 0:00:30]} 47. Kf6 {[%emt 0:00:38]} Rf4+ {[%emt 0:00:30]} 48. Kg7 {[%emt 0:00:36]} Rf5 {[%emt 0:00:30]} 49. Kh6 {[%emt 0:00:42]} Rf7 {[%emt 0:00:30]} 50. Rf6 {[%emt 0:00:08]} Rc7 {[%emt 0:00:30]} 51. Rf8 {[%emt 0:01:35]} Rc3 {[%emt 0:05:30]} 52. Rf7+ {[%emt 0:00:19]} Kb6 {[%emt 0:00:30]} 53. Rxh7 {[%emt 0:00:39]} Rxa3 {[%emt 0:00:00]} 54. Kxg6 {[%emt 0:00:16]} Rb3 {[%emt 0:00:00]} 55. Rh4 {[%emt 0:01:53]} a5 {[%emt 0:01:30]} 56. Kf5 {[%emt 0:03:28]} axb4 {[%emt 0:01:30]} 57. g6 {[%emt 0:00:22]} Rc3 {[%emt 0:00:30]} 58. g7 {[%emt 0:00:33]} Rc5+ {[%emt 0:01:30]} 59. Kg6 {[%emt 0:04:24]} Rc6+ {[%emt 0:00:30]} 60. Kh7 {[%emt 0:00:49]} Rc7 {[%emt 0:01:30]} 61. Rxb4 {[%emt 0:00:07]} Ka5 {[%emt 0:00:30]} 62. Rg4 {[%emt 0:00:27]} b4 {[%emt 0:00:30]} 63. Kh6 {[%emt 0:00:32]} Rxg7 {[%emt 0:04:30]} 64. Rxg7 {[%emt 0:00:02]} Ka4 {[%emt 0:00:00]} 65. Ra7+ {[%emt 0:00:23]} Kb3 {[%emt 0:00:00]} 66. Kg5 {[%emt 0:00:09]} Kc4 {[%emt 0:00:00]} 67. Rc7+ {[%emt 0:00:16]} Kd3 {[%emt 0:00:00]} 68. Rb7 {[%emt 0:00:38]} Kc3 {[%emt 0:00:00]} 69. Kf4 {[%emt 0:00:40]} b3 {[%emt 0:00:00]} 70. Ke3 {[%emt 0:00:40]} b2 {[%emt 0:00:30]} 71. Rc7+ {[%emt 0:00:28]} Kb3 {[%emt 0:00:00]} 72. Rb7+ {[%emt 0:00:16]} Kc3 {[%emt 0:00:00]} 73. Rxb2 {[%emt 0:00:01]} Kxb2 {[%emt 0:01:30]} 1/2-1/2

[Event "24th Bosnjaci Open 2019"]
[Site "Bosnjaci"]
[Date "2019.01.06"]
[Round "6.22"]
[White "Luketic, Ivan"]
[Black "Pasalic, Adnan"]
[Result "1/2-1/2"]
[ECO "E01"]
[WhiteElo "1801"]
[BlackElo "1973"]
[Annotator "NA"]
[PlyCount "89"]
[EventDate "2019.01.03"]
[EventType "swiss"]
[EventCountry "CRO"]
[SourceTitle "playchess.com"]
[Source "ChessBase"]
[SourceQuality "1"]
[TimeControl "5400+30"]

1. Nf3 {[%emt 0:00:30]} d5 {[%emt 0:00:30]} 2. g3 {[%emt 0:00:00]} Nf6 {[%emt 0:00:30]} 3. d4 {[%emt 0:01:00]} e6 {[%emt 0:00:30]} 4. Nbd2 {[%emt 0:00:30]} Bd6 {[%emt 0:00:30]} 5. Bg2 {[%emt 0:01:30]} O-O {[%emt 0:00:30]} 6. O-O {[%emt 0:01:30]} Nbd7 {[%emt 0:00:30]} 7. c4 {[%emt 0:00:30]} c6 {[%emt 0:00:30]} 8. Re1 {[%emt 0:00:30]} b6 {[%emt 0:04:30]} 9. a3 {[%emt 0:00:30]} a5 {[%emt 0:01:30]} 10. Qc2 {[%emt 0:00:30]} Bb7 {[%emt 0:00:30]} 11. e4 {[%emt 0:00:30]} dxe4 {[%emt 0:00:30]} 12. Nxe4 {[%emt 0:00:30]} Nxe4 {[%emt 0:00:00]} 13. Qxe4 {[%emt 0:00:30]} Nf6 {[%emt 0:01:00]} 14. Qc2 {[%emt 0:00:30]} c5 {[%emt 0:01:30]} 15. Be3 {[%emt 0:00:00]} Qc7 {[%emt 0:03:30]} 16. b3 {[%emt 0:01:00]} h6 {[%emt 0:02:30]} 17. Rad1 {[%emt 0:00:00]} Ng4 {[%emt 0:00:30]} 18. Qc3 {[%emt 0:00:00]} Nxe3 {[%emt 0:01:30]} 19. Qxe3 {[%emt 0:01:30]} cxd4 {[%emt 0:00:30]} 20. Nxd4 {[%emt 0:00:30]} Bc5 {[%emt 0:02:30]} 21. Nb5 {[%emt 0:03:30]} Qe7 {[%emt 0:03:30]} 22. Qc1 {[%emt 0:01:30]} Bxg2 {[%emt 0:01:30]} 23. Kxg2 {[%emt 0:00:30]} Rfd8 {[%emt 0:01:30]} 24. h3 {[%emt 0:00:30]} Qb7+ {[%emt 0:00:00]} 25. f3 {[%emt 0:01:30]} Qe7 {[%emt 0:05:00]} 26. h4 {[%emt 0:00:30]} Rxd1 {[%emt 0:03:30]} 27. Rxd1 {[%emt 0:00:30]} Rd8 {[%emt 0:00:30]} 28. Rxd8+ {[%emt 0:02:30]} Qxd8 {[%emt 0:00:30]} 29. Qc2 {[%emt 0:01:30]} Qf6 {[%emt 0:00:30]} 30. Nc3 {[%emt 0:04:30]} Qd4 {[%emt 0:00:30]} 31. Kh3 {[%emt 0:03:30]} Qg1 {[%emt 0:07:30]} 32. Qd1 {[%emt 0:03:30]} Qxd1 {[%emt 0:03:30]} 33. Nxd1 {[%emt 0:01:30]} Bxa3 {[%emt 0:00:30]} 34. Nf2 {[%emt 0:00:00]} Kf8 {[%emt 0:00:30]} 35. Nd3 {[%emt 0:00:00]} Ke7 {[%emt 0:00:30]} 36. Kg2 {[%emt 0:00:30]} Kd6 {[%emt 0:00:30]} 37. f4 {[%emt 0:00:30]} f6 {[%emt 0:01:30]} 38. Kf3 {[%emt 0:00:30]} Bc5 {[%emt 0:01:30]} 39. h5 {[%emt 0:01:30]} Bd4 {[%emt 0:02:30]} 40. Ke4 {[%emt 0:02:30]} Bc3 {[%emt 0:01:30]} 41. g4 {[%emt 0:00:30]} Bd2 {[%emt 0:02:30]} 42. f5 {[%emt 0:00:30]} Bg5 {[%emt 0:03:30]} 43. fxe6 {[%emt 0:02:30]} Kxe6 {[%emt 0:00:30]} 44. Nf2 {[%emt 0:00:30]} Bd2 {[%emt 0:01:30]} 45. Nd3 {[%emt 0:00:30]} 1/2-1/2

[Event "24th Bosnjaci Open 2019"]
[Site "Bosnjaci"]
[Date "2019.01.08"]
[Round "6.24"]
[White "Novosad, Ivan"]
[Black "Andrijevic, Milan"]
[Result "0-1"]
[ECO "D55"]
[WhiteElo "1840"]
[BlackElo "2244"]
[Annotator "ChessBase"]
[PlyCount "70"]
[EventDate "2019.01.03"]
[EventType "swiss"]
[EventCountry "CRO"]
[TimeControl "5400+30"]

1. d4 {[%emt 0:00:30]} d5 {[%emt 0:01:30]} 2. c4 {[%emt 0:00:00]} e6 {[%emt 0:00:30]} 3. Nc3 {[%emt 0:00:00]} Nf6 {[%emt 0:00:00]} 4. Bg5 {[%emt 0:00:30]} Be7 {[%emt 0:00:00]} 5. e3 {[%emt 0:00:30]} O-O {[%emt 0:00:30]} 6. Nf3 {[%emt 0:00:30]} Ne4 {[%emt 0:00:00]} 7. Bxe7 {[%emt 0:01:30]} Qxe7 {[%emt 0:00:00]} 8. cxd5 {[%emt 0:00:30]} Nxc3 {[%emt 0:00:30]} 9. d6 {[%emt 0:06:30]} cxd6 {[%emt 0:02:30]} 10. bxc3 {[%emt 0:00:00]} e5 {[%emt 0:01:30]} 11. Be2 {[%emt 0:05:00]} b6 {[%emt 0:01:30]} 12. Rc1 {[%emt 0:01:30]} Bb7 {[%emt 0:00:30]} 13. O-O {[%emt 0:00:30]} Nc6 {[%emt 0:02:30]} 14. Re1 {[%emt 0:03:30]} Na5 {[%emt 0:01:30]} 15. Nd2 {[%emt 0:02:30]} Rac8 {[%emt 0:06:30]} 16. Qa4 {[%emt 0:07:30]} Qg5 {[%emt 0:12:30]} 17. g3 {[%emt 0:08:30]} Qg6 {[%emt 0:01:30]} 18. c4 {[%emt 0:10:30]} Rc7 {[%emt 0:03:30]} 19. d5 {[%emt 0:10:30]} h5 {[%emt 0:05:30]} 20. Nb3 {[%emt 0:00:30]} Nxb3 {[%emt 0:00:30]} 21. axb3 {[%emt 0:00:30]} Bc8 {[%emt 0:01:30]} 22. Qa2 {[%emt 0:02:30]} h4 {[%emt 0:04:30]} 23. Bf3 {[%emt 0:02:30]} f5 {[%emt 0:02:30]} 24. Qc2 {[%emt 0:02:30]} Qg5 {[%emt 0:01:30]} 25. Qd2 {[%emt 0:02:30]} Rcf7 {[%emt 0:04:30]} 26. Bg2 {[%emt 0:00:30]} f4 {[%emt 0:00:30]} 27. exf4 {[%emt 0:02:30]} exf4 {[%emt 0:00:30]} 28. Rc3 {[%emt 0:00:30]} Qh6 {[%emt 0:02:30]} 29. gxh4 {[%emt 0:02:30]} Qxh4 {[%emt 0:01:30]} 30. f3 {[%emt 0:06:30]} Rf6 {[%emt 0:00:30]} 31. Rc2 {[%emt 0:01:30]} Rg6 {[%emt 0:04:30]} 32. Kh1 {[%emt 0:00:30]} Rh6 {[%emt 0:05:30]} 33. Kg1 {[%emt 0:03:45]} Qxh2+ {[%emt 0:00:30]} 34. Kf1 {[%emt 0:00:31]} Rg6 {[%emt 0:01:30]} 35. Qf2 {[%emt 0:01:18]} Rxg2 {[%emt 0:00:30]} 0-1

[Event "24th Bosnjaci Open 2019"]
[Site "Bosnjaci"]
[Date "2019.01.08"]
[Round "7.14"]
[White "Lazor, Vladimir"]
[Black "Mutapcic, Ilija"]
[Result "1-0"]
[ECO "C49"]
[WhiteElo "2164"]
[BlackElo "1836"]
[Annotator "ChessBase"]
[PlyCount "77"]
[EventDate "2019.01.03"]
[EventType "swiss"]
[EventCountry "CRO"]
[TimeControl "5400+30"]

1. e4 {[%emt 0:00:30]} e5 {[%emt 0:00:30]} 2. Nf3 {[%emt 0:00:00]} Nf6 {[%emt 0:00:00]} 3. Nc3 {[%emt 0:00:00]} Nc6 {[%emt 0:00:00]} 4. Bb5 {[%emt 0:00:30]} Bb4 {[%emt 0:00:30]} 5. d3 {[%emt 0:00:30]} Nd4 {[%emt 0:02:30]} 6. Ba4 {[%emt 0:10:30]} b5 {[%emt 0:07:30]} 7. Bb3 {[%emt 0:00:00]} d6 {[%emt 0:00:30]} 8. h3 {[%emt 0:00:00]} h6 {[%emt 0:00:30]} 9. O-O {[%emt 0:03:30]} Nxb3 {[%emt 0:00:30]} 10. axb3 {[%emt 0:00:30]} Bxc3 {[%emt 0:00:30]} 11. bxc3 {[%emt 0:00:30]} O-O {[%emt 0:00:30]} 12. c4 {[%emt 0:04:30]} b4 {[%emt 0:02:30]} 13. c5 {[%emt 0:01:30]} Re8 {[%emt 0:00:30]} 14. Bb2 {[%emt 0:01:30]} Bb7 {[%emt 0:02:30]} 15. Ra5 {[%emt 0:07:30]} Nd7 {[%emt 0:01:30]} 16. cxd6 {[%emt 0:01:30]} cxd6 {[%emt 0:01:30]} 17. Qa1 {[%emt 0:00:30]} a6 {[%emt 0:01:30]} 18. Nd2 {[%emt 0:05:30]} f6 {[%emt 0:02:30]} 19. Nc4 {[%emt 0:04:30]} Nb6 {[%emt 0:02:30]} 20. Ne3 {[%emt 0:00:30]} Rc8 {[%emt 0:01:30]} 21. Qd1 {[%emt 0:04:30]} Nd7 {[%emt 0:06:30]} 22. Ra4 {[%emt 0:02:30]} a5 {[%emt 0:01:30]} 23. Qg4 {[%emt 0:00:00]} Kh7 {[%emt 0:00:30]} 24. Nf5 {[%emt 0:02:00]} Rg8 {[%emt 0:00:30]} 25. Nxd6 {[%emt 0:15:30]} Bc6 {[%emt 0:00:30]} 26. Ra2 {[%emt 0:01:30]} Ra8 {[%emt 0:00:30]} 27. Rfa1 {[%emt 0:03:30]} Nc5 {[%emt 0:01:30]} 28. Nf5 {[%emt 0:01:30]} Bd7 {[%emt 0:00:30]} 29. Bc1 {[%emt 0:03:30]} Ne6 {[%emt 0:10:30]} 30. Qh4 {[%emt 0:02:30]} Ng5 {[%emt 0:01:30]} 31. Bxg5 {[%emt 0:01:30]} fxg5 {[%emt 0:00:30]} 32. Qg3 {[%emt 0:00:30]} g6 {[%emt 0:05:30]} 33. Ne3 {[%emt 0:00:30]} Re8 {[%emt 0:00:30]} 34. Nc4 {[%emt 0:00:00]} h5 {[%emt 0:01:30]} 35. Rxa5 {[%emt 0:04:09]} Rxa5 {[%emt 0:00:30]} 36. Rxa5 {[%emt 0:00:21]} h4 {[%emt 0:00:30]} 37. Qf3 {[%emt 0:00:30]} Be6 {[%emt 0:01:30]} 38. Ra7+ {[%emt 0:01:37]} Re7 {[%emt 0:01:30]} 39. Qf6 {[%emt 0:01:24]} 1-0

[Event "24th Bosnjaci Open 2019"]
[Site "Bosnjaci"]
[Date "2019.01.08"]
[Round "7.15"]
[White "Borzan, Andrej"]
[Black "Katic, Zeljko"]
[Result "1/2-1/2"]
[ECO "E61"]
[WhiteElo "1818"]
[BlackElo "2035"]
[Annotator "NA"]
[PlyCount "150"]
[EventDate "2019.01.03"]
[EventType "swiss"]
[EventCountry "CRO"]
[TimeControl "5400+30"]

1. d4 {[%emt 0:00:30]} Nf6 {[%emt 0:03:30]} 2. Nf3 {[%emt 0:00:00]} g6 {[%emt 0:00:30]} 3. Bf4 {[%emt 0:00:00]} Bg7 {[%emt 0:00:30]} 4. e3 {[%emt 0:00:30]} d6 {[%emt 0:00:30]} 5. c4 {[%emt 0:00:30]} O-O {[%emt 0:00:30]} 6. Nc3 {[%emt 0:00:00]} Re8 {[%emt 0:03:30]} 7. Be2 {[%emt 0:01:00]} Nbd7 {[%emt 0:04:30]} 8. O-O {[%emt 0:01:30]} Nh5 {[%emt 0:00:30]} 9. Bg3 {[%emt 0:00:30]} Nxg3 {[%emt 0:01:30]} 10. hxg3 {[%emt 0:00:30]} e5 {[%emt 0:02:30]} 11. d5 {[%emt 0:02:30]} e4 {[%emt 0:07:30]} 12. Nd4 {[%emt 0:01:30]} a6 {[%emt 0:04:30]} 13. Qc2 {[%emt 0:00:30]} Nf6 {[%emt 0:02:30]} 14. Rad1 {[%emt 0:02:30]} Qe7 {[%emt 0:04:30]} 15. Rfe1 {[%emt 0:02:30]} h5 {[%emt 0:01:30]} 16. b4 {[%emt 0:03:30]} Qe5 {[%emt 0:05:30]} 17. Rc1 {[%emt 0:02:30]} Qg5 {[%emt 0:01:30]} 18. Bf1 {[%emt 0:01:30]} h4 {[%emt 0:01:30]} 19. gxh4 {[%emt 0:01:30]} Qxh4 {[%emt 0:01:30]} 20. g3 {[%emt 0:02:30]} Qg5 {[%emt 0:05:30]} 21. Bg2 {[%emt 0:01:30]} Bf5 {[%emt 0:01:30]} 22. Nxf5 {[%emt 0:02:30]} gxf5 {[%emt 0:00:30]} 23. Ne2 {[%emt 0:00:30]} Ng4 {[%emt 0:00:30]} 24. Nf4 {[%emt 0:00:30]} Be5 {[%emt 0:02:30]} 25. Bh3 {[%emt 0:03:30]} Nf6 {[%emt 0:00:30]} 26. Qd2 {[%emt 0:01:30]} Kg7 {[%emt 0:08:30]} 27. c5 {[%emt 0:01:30]} Rh8 {[%emt 0:01:30]} 28. Bg2 {[%emt 0:00:30]} Rh7 {[%emt 0:04:30]} 29. cxd6 {[%emt 0:01:30]} cxd6 {[%emt 0:00:30]} 30. Rc7 {[%emt 0:00:30]} Rah8 {[%emt 0:00:30]} 31. Ne6+ {[%emt 0:00:00]} Kg6 {[%emt 0:01:30]} 32. Nxg5 {[%emt 0:00:00]} Kxg5 {[%emt 0:00:00]} 33. Rxb7 {[%emt 0:00:00]} Ng4 {[%emt 0:01:00]} 34. Ra7 {[%emt 0:02:00]} Nh2 {[%emt 0:00:30]} 35. Qe2 {[%emt 0:01:30]} Kf6 {[%emt 0:02:30]} 36. Rc1 {[%emt 0:01:30]} Rg8 {[%emt 0:02:30]} 37. Rcc7 {[%emt 0:01:30]} Rgg7 {[%emt 0:01:30]} 38. Qxa6 {[%emt 0:00:30]} Nf3+ {[%emt 0:01:30]} 39. Kf1 {[%emt 0:03:30]} Rh2 {[%emt 0:04:03]} 40. Bxf3 {[%emt 0:00:30]} exf3 {[%emt 0:00:10]} 41. Rxf7+ {[%emt 0:00:30]} Rxf7 {[%emt 0:00:22]} 42. Rxf7+ {[%emt 0:00:00]} Kxf7 {[%emt 0:00:25]} 43. Kg1 {[%emt 0:00:00]} Rg2+ {[%emt 0:00:37]} 44. Kf1 {[%emt 0:00:00]} Rh2 {[%emt 0:00:23]} 45. Ke1 {[%emt 0:00:00]} Bc3+ {[%emt 0:00:30]} 46. Kd1 {[%emt 0:00:00]} Rxf2 {[%emt 0:01:49]} 47. Qxd6 {[%emt 0:01:00]} Rd2+ {[%emt 0:00:42]} 48. Kc1 {[%emt 0:00:00]} f2 {[%emt 0:00:44]} 49. Qe6+ {[%emt 0:00:00]} Kg7 {[%emt 0:03:29]} 50. Qd7+ {[%emt 0:00:30]} Kg6 {[%emt 0:01:07]} 51. Qc6+ {[%emt 0:00:00]} Bf6 {[%emt 0:00:18]} 52. Kxd2 {[%emt 0:01:00]} f1=Q {[%emt 0:00:24]} 53. b5 {[%emt 0:00:30]} Qf2+ {[%emt 0:00:26]} 54. Kd3 {[%emt 0:00:30]} Qxa2 {[%emt 0:00:22]} 55. b6 {[%emt 0:00:30]} Qb3+ {[%emt 0:00:24]} 56. Ke2 {[%emt 0:00:30]} Kg5 {[%emt 0:00:52]} 57. b7 {[%emt 0:01:30]} Be5 {[%emt 0:01:15]} 58. d6 {[%emt 0:01:30]} Bxg3 {[%emt 0:03:15]} 59. d7 {[%emt 0:00:30]} Qb2+ {[%emt 0:00:39]} 60. Kd3 {[%emt 0:00:30]} Qb3+ {[%emt 0:00:26]} 61. Kd2 {[%emt 0:14:30]} Qb2+ {[%emt 0:00:34]} 62. Kd1 {[%emt 0:02:30]} Qb1+ {[%emt 0:00:29]} 63. Qc1 {[%emt 0:00:30]} Qd3+ {[%emt 0:00:48]} 64. Qd2 {[%emt 0:00:30]} Qb1+ {[%emt 0:00:16]} 65. Ke2 {[%emt 0:01:30]} Qb5+ {[%emt 0:01:14]} 66. Kf3 {[%emt 0:00:30]} Bc7 {[%emt 0:01:00]} 67. d8=Q+ {[%emt 0:00:30]} Bxd8 {[%emt 0:01:06]} 68. Qxd8+ {[%emt 0:00:30]} Kh5 {[%emt 0:00:15]} 69. b8=Q {[%emt 0:00:30]} Qf1+ {[%emt 0:00:13]} 70. Kg3 {[%emt 0:00:00]} Qg1+ {[%emt 0:03:05]} 71. Kf4 {[%emt 0:01:00]} Qf2+ {[%emt 0:00:22]} 72. Ke5 {[%emt 0:00:00]} Qxe3+ {[%emt 0:00:40]} 73. Kxf5 {[%emt 0:00:00]} Qf3+ {[%emt 0:01:17]} 74. Qf4 {[%emt 0:00:30]} Qd5+ {[%emt 0:00:12]} 75. Qe5 {[%emt 0:01:30]} Qxd8 {[%emt 0:00:26]} 1/2-1/2

[Event "24th Bosnjaci Open 2019"]
[Site "Bosnjaci"]
[Date "2019.01.08"]
[Round "7.16"]
[White "Andrijevic, Milan"]
[Black "Turicar, Goran"]
[Result "1-0"]
[ECO "B07"]
[WhiteElo "2244"]
[BlackElo "1862"]
[Annotator "ChessBase"]
[PlyCount "93"]
[EventDate "2019.01.03"]
[EventType "swiss"]
[EventCountry "CRO"]
[TimeControl "5400+30"]

1. e4 {[%emt 0:00:30]} d6 {[%emt 0:00:30]} 2. d4 {[%emt 0:00:30]} Nf6 {[%emt 0:00:30]} 3. Nc3 {[%emt 0:00:00]} Nbd7 {[%emt 0:00:30]} 4. g3 {[%emt 0:01:00]} e5 {[%emt 0:00:30]} 5. Nge2 {[%emt 0:00:30]} Be7 {[%emt 0:00:30]} 6. Bg2 {[%emt 0:00:00]} O-O {[%emt 0:00:30]} 7. O-O {[%emt 0:00:00]} c6 {[%emt 0:02:30]} 8. a4 {[%emt 0:00:30]} a5 {[%emt 0:01:30]} 9. h3 {[%emt 0:02:30]} Re8 {[%emt 0:03:30]} 10. Be3 {[%emt 0:07:30]} Bf8 {[%emt 0:03:30]} 11. g4 {[%emt 0:01:30]} exd4 {[%emt 0:14:30]} 12. Bxd4 {[%emt 0:01:30]} c5 {[%emt 0:04:30]} 13. Be3 {[%emt 0:01:30]} Ne5 {[%emt 0:00:30]} 14. g5 {[%emt 0:03:30]} Nh5 {[%emt 0:04:30]} 15. f4 {[%emt 0:08:30]} Nc4 {[%emt 0:01:30]} 16. Bc1 {[%emt 0:04:30]} Bd7 {[%emt 0:05:30]} 17. Kh2 {[%emt 0:09:30]} Bc6 {[%emt 0:02:30]} 18. Nd5 {[%emt 0:21:30]} Nb6 {[%emt 0:20:30]} 19. Nec3 {[%emt 0:00:30]} g6 {[%emt 0:00:30]} 20. Bf3 {[%emt 0:00:30]} Bxd5 {[%emt 0:00:30]} 21. Nxd5 {[%emt 0:00:30]} Nxd5 {[%emt 0:00:30]} 22. Qxd5 {[%emt 0:01:30]} Ng7 {[%emt 0:01:30]} 23. Qxb7 {[%emt 0:00:00]} Rb8 {[%emt 0:00:30]} 24. Qd5 {[%emt 0:00:00]} Ne6 {[%emt 0:00:30]} 25. c3 {[%emt 0:00:30]} Rb6 {[%emt 0:00:30]} 26. Bg2 {[%emt 0:00:30]} Bg7 {[%emt 0:01:30]} 27. Kh1 {[%emt 0:00:30]} Nc7 {[%emt 0:00:30]} 28. Qc4 {[%emt 0:00:30]} Qe7 {[%emt 0:01:30]} 29. Rb1 {[%emt 0:00:30]} Reb8 {[%emt 0:00:30]} 30. Rf2 {[%emt 0:00:30]} Rb3 {[%emt 0:00:30]} 31. Ra1 {[%emt 0:00:30]} R3b6 {[%emt 0:02:30]} 32. Ra2 {[%emt 0:01:30]} Rd8 {[%emt 0:02:30]} 33. Be3 {[%emt 0:02:30]} Rbb8 {[%emt 0:01:30]} 34. Ra1 {[%emt 0:01:30]} Bf8 {[%emt 0:00:30]} 35. Qd3 {[%emt 0:04:30]} Re8 {[%emt 0:01:30]} 36. Re1 {[%emt 0:00:30]} Rbd8 {[%emt 0:01:30]} 37. Qc4 {[%emt 0:02:30]} Qd7 {[%emt 0:00:30]} 38. Rd2 {[%emt 0:03:30]} Qe7 {[%emt 0:03:49]} 39. Rdd1 {[%emt 0:01:30]} Rb8 {[%emt 0:00:10]} 40. Bc1 {[%emt 0:00:00]} h6 {[%emt 0:00:40]} 41. Rf1 {[%emt 0:01:00]} Red8 {[%emt 0:01:14]} 42. f5 {[%emt 0:00:30]} hxg5 {[%emt 0:04:18]} 43. fxg6 {[%emt 0:00:30]} d5 {[%emt 0:00:11]} 44. gxf7+ {[%emt 0:00:52]} Kg7 {[%emt 0:00:53]} 45. exd5 {[%emt 0:00:21]} Qe5 {[%emt 0:02:04]} 46. Qg4 {[%emt 0:01:14]} Be7 {[%emt 0:02:53]} 47. Bf4 {[%emt 0:00:24]} 1-0

[Event "24th Bosnjaci Open 2019"]
[Site "Bosnjaci"]
[Date "2019.01.08"]
[Round "7.17"]
[White "Ascic, Anto"]
[Black "Luketic, Ivan"]
[Result "1-0"]
[ECO "B30"]
[WhiteElo "2093"]
[BlackElo "1801"]
[Annotator "NA"]
[PlyCount "85"]
[EventDate "2019.01.03"]
[EventType "swiss"]
[EventCountry "CRO"]
[TimeControl "5400+30"]

1. e4 {[%emt 0:00:30]} c5 {[%emt 0:00:30]} 2. Nf3 {[%emt 0:00:00]} Nc6 {[%emt 0:00:00]} 3. c4 {[%emt 0:00:00]} e5 {[%emt 0:01:00]} 4. Nc3 {[%emt 0:00:30]} Nf6 {[%emt 0:00:30]} 5. d3 {[%emt 0:00:00]} d6 {[%emt 0:00:30]} 6. Be2 {[%emt 0:00:00]} Be7 {[%emt 0:00:30]} 7. O-O {[%emt 0:00:30]} O-O {[%emt 0:02:30]} 8. a3 {[%emt 0:00:00]} Bg4 {[%emt 0:00:00]} 9. Rb1 {[%emt 0:00:00]} a6 {[%emt 0:00:00]} 10. Nd5 {[%emt 0:00:30]} Nxd5 {[%emt 0:02:30]} 11. cxd5 {[%emt 0:00:30]} Bxf3 {[%emt 0:00:30]} 12. Bxf3 {[%emt 0:00:30]} Nd4 {[%emt 0:00:30]} 13. b4 {[%emt 0:00:30]} b5 {[%emt 0:00:30]} 14. Be3 {[%emt 0:00:30]} Bg5 {[%emt 0:01:30]} 15. Bg4 {[%emt 0:02:30]} Ra7 {[%emt 0:00:30]} 16. Qc1 {[%emt 0:00:30]} Be7 {[%emt 0:01:30]} 17. f4 {[%emt 0:02:30]} Rc7 {[%emt 0:01:30]} 18. Qd2 {[%emt 0:00:30]} c4 {[%emt 0:00:30]} 19. Bxd4 {[%emt 0:00:30]} exd4 {[%emt 0:01:30]} 20. dxc4 {[%emt 0:00:30]} Bf6 {[%emt 0:00:30]} 21. c5 {[%emt 0:03:30]} g6 {[%emt 0:03:30]} 22. cxd6 {[%emt 0:00:30]} Qxd6 {[%emt 0:03:30]} 23. e5 {[%emt 0:00:30]} Bxe5 {[%emt 0:00:30]} 24. fxe5 {[%emt 0:00:30]} Qxe5 {[%emt 0:00:30]} 25. Rbd1 {[%emt 0:01:30]} Qxd5 {[%emt 0:01:30]} 26. Qxd4 {[%emt 0:00:30]} Qg5 {[%emt 0:01:30]} 27. Qf4 {[%emt 0:01:30]} Qxf4 {[%emt 0:02:30]} 28. Rxf4 {[%emt 0:00:30]} f5 {[%emt 0:00:30]} 29. Bf3 {[%emt 0:00:30]} Rc3 {[%emt 0:02:30]} 30. Bd5+ {[%emt 0:01:30]} Kg7 {[%emt 0:00:00]} 31. Rf3 {[%emt 0:00:00]} Rc7 {[%emt 0:02:00]} 32. Rfd3 {[%emt 0:00:00]} Rf6 {[%emt 0:00:30]} 33. Bf3 {[%emt 0:00:30]} Rff7 {[%emt 0:02:30]} 34. Rd6 {[%emt 0:01:30]} Rfe7 {[%emt 0:00:30]} 35. Rxa6 {[%emt 0:00:30]} Re3 {[%emt 0:01:30]} 36. Bc6 {[%emt 0:02:30]} Kh6 {[%emt 0:01:30]} 37. Bxb5 {[%emt 0:00:00]} Rc2 {[%emt 0:00:00]} 38. Bf1 {[%emt 0:01:00]} f4 {[%emt 0:00:00]} 39. Rf6 {[%emt 0:00:30]} Kg5 {[%emt 0:00:30]} 40. Rf7 {[%emt 0:00:30]} Rxa3 {[%emt 0:01:30]} 41. Rd5+ {[%emt 0:02:30]} Kg4 {[%emt 0:00:30]} 42. h3+ {[%emt 0:00:30]} Rxh3 {[%emt 0:01:30]} 43. gxh3+ {[%emt 0:00:00]} 1-0